bitfinex/quotes_SOLUSD_20251212
["timestamp","ask_amount","ask_price","bid_price","bid_amount"]
[1765520881390,0.67,139.44,139.42,0.92]
[1765520881701,20.00356455,139.45,139.42,8.09251806]
[1765520882300,0.67,139.44,139.42,8.09251806]
[1765520885007,0.67,139.44,139.42,0.2]
[1765520885693,7.84,139.45,139.42,7.37254957]
[1765520885897,8.51,139.45,139.43,4.6926119]
[1765520886104,8.51,139.45,139.42,8.09254957]
[1765520886304,8.51,139.45,139.43,4.69279957]
[1765520886604,8.51,139.45,139.42,8.09254957]
[1765520886899,8.51,139.45,139.43,4.69685112]
[1765520887080,8.51,139.45,139.42,8.09254957]
[1765520887279,8.51,139.45,139.43,4.69685112]
[1765520887478,8.51,139.45,139.42,8.09254957]
[1765520887683,0.67,139.44,139.43,4.69988579]
[1765520888409,7.84,139.45,139.43,4.69988579]
[1765520888598,8.51,139.45,139.42,8.09237044]
[1765520888798,0.67,139.44,139.43,4.70057163]
[1765520890585,7.84154331,139.44,139.43,4.70057163]
[1765520891608,12.16382691,139.44,139.42,0.2]
[1765520891911,4.9922836,139.43,139.42,0.2]
[1765520892112,0.67,139.43,139.42,4.90412692]
[1765520892289,0.67,139.43,139.42,0.2]
[1765520892490,4.9922836,139.43,139.42,0.2]
[1765520893385,12.16434126,139.43,139.42,0.2]
[1765520894320,7.84205766,139.43,139.42,0.2]
[1765520894500,20.02434126,139.43,139.42,0.2]
[1765520907731,69.49249012,139.43,139.38,0.2]
[1765520907925,4.3222836,139.39,139.38,0.2]
[1765520908126,12.1822836,139.39,139.38,0.2]
[1765520908329,12.8622836,139.39,139.38,0.2]
[1765520908533,20.03639939,139.39,139.38,0.2]
[1765520908742,19.35639939,139.39,139.38,0.2]
[1765520909544,20.03639939,139.39,139.38,0.2]
[1765520910529,19.35639939,139.39,139.38,0.2]
[1765520910724,20.03639939,139.39,139.38,0.2]
[1765520913726,19.35639939,139.39,139.38,0.2]
[1765520916062,20.03639939,139.39,139.38,0.2]
[1765520916731,19.35639939,139.39,139.38,0.2]
[1765520919247,15.03411579,139.39,139.38,0.2]
[1765520919460,7.17154331,139.44,139.38,8.37895364]
[1765520919651,7.86,139.43,139.38,8.37895364]
[1765520919959,7.86,139.43,139.39,0.72]
[1765520920367,7.17257208,139.42,139.39,0.72]
[1765520921367,7.86,139.41,139.39,0.72]
[1765520924066,7.86,139.41,139.39,7.89405678]
[1765520924259,7.86,139.41,139.4,0.66]
[1765520925861,7.86,139.41,139.39,0.66]
[1765520927174,7.86,139.41,139.39,7.83405414]
[1765520927371,7.86,139.41,139.4,9.09426806]
[1765520927564,7.86,139.41,139.4,9.75426806]
[1765520929357,7.86,139.41,139.4,16.9278692]
[1765520930276,7.86,139.43,139.4,16.9278692]
[1765520930468,7.86,139.43,139.41,0.66]
[1765520935165,15.03210157,139.43,139.41,0.66]
[1765520935368,7.86,139.43,139.41,0.66]
[1765520936175,7.86,139.43,139.41,7.83306803]
[1765520936555,7.86,139.43,139.41,0.66]
[1765520939162,7.86,139.43,139.41,7.83299285]
[1765520939679,7.86,139.43,139.42,0.66]
[1765520940366,15.03077607,139.46,139.42,7.83257208]
[1765520940568,7.86,139.46,139.43,13.78018518]
[1765520940778,7.86,139.46,139.43,9.75426806]
[1765520940975,7.86,139.46,139.44,0.66]
[1765520941166,15.73058519,139.46,139.43,9.09426806]
[1765520941368,20.05410252,139.46,139.43,0.66]
[1765520941568,0.7,139.45,139.42,0.66]
[1765520941774,7.87122353,139.45,139.42,0.66]
[1765520942786,7.17122353,139.45,139.42,0.66]
[1765520943476,9.93722172,139.45,139.42,0.66]
[1765520943682,7.17122353,139.45,139.42,0.66]
[1765520945172,10.63722172,139.45,139.42,0.66]
[1765520946178,7.17122353,139.45,139.42,0.66]
[1765520947063,7.87122353,139.45,139.42,0.66]
[1765520948593,2.76599819,139.43,139.39,31.64029449]
[1765520948792,2.76599819,139.43,139.38,0.2]
[1765520948793,7.86,139.43,139.38,0.86]
[1765520948976,2.76599819,139.41,139.38,0.86]
[1765520949288,0.7,139.42,139.38,0.2]
[1765520949289,10.62599819,139.4,139.38,0.2]
[1765520949788,11.32599819,139.4,139.38,0.2]
[1765520950590,7.17411579,139.39,139.38,0.2]
[1765520952482,7.87411579,139.39,139.38,0.2]
[1765520953801,0.7,139.39,139.38,0.2]
[1765520954091,7.87411579,139.39,139.38,0.2]
[1765520954296,7.17411579,139.39,139.38,0.2]
[1765520956297,7.89411579,139.39,139.38,0.2]
[1765520957294,7.86,139.4,139.38,0.92]
[1765520957481,7.86,139.4,139.38,8.09461449]
[1765520957687,7.86,139.4,139.39,0.72]
[1765520959409,7.86,139.4,139.39,7.89411579]
[1765520959575,7.86,139.4,139.39,0.72]
[1765520960109,7.86,139.4,139.39,7.89411579]
[1765520960274,0.72,139.46,139.4,9.09426806]
[1765520960475,8.58,139.45,139.41,4.69276522]
[1765520960674,8.58,139.45,139.41,0.72]
[1765520961088,7.86,139.45,139.41,0.72]
[1765520961290,7.86,139.45,139.42,7.17257208]
[1765520962097,7.86,139.45,139.43,0.72]
[1765520962298,2.76598348,139.49,139.44,8.80994492]
[1765520962602,7.86,139.48,139.45,0.72]
[1765520963175,7.86,139.48,139.45,7.89100577]
[1765520963379,8.54,139.48,139.45,7.89100577]
[1765520963693,7.86,139.48,139.46,0.66]
[1765520966705,18.47551988,139.48,139.44,16.64134324]
[1765520967014,18.47551988,139.48,139.45,5.34733626]
[1765520967216,18.47551988,139.48,139.45,0.66]
[1765520967791,15.7095364,139.48,139.45,0.66]
[1765520968018,18.47551988,139.48,139.45,0.66]
[1765520968502,15.7095364,139.48,139.45,0.66]
[1765520968918,8.54,139.48,139.45,7.17063193]
[1765520969117,8.54,139.48,139.45,7.83063193]
[1765520969420,7.86,139.48,139.46,0.66]
[1765520970492,7.86,139.48,139.46,7.83043411]
[1765520970917,0.68,139.52,139.47,9.75426806]
[1765520971216,2.76598348,139.49,139.45,8.11512991]
[1765520971416,7.86,139.48,139.45,8.11512991]
[1765520971717,2.76598348,139.47,139.43,22.18157537]
[1765520971908,2.76598348,139.47,139.44,0.66]
[1765520972114,8.54,139.48,139.44,0.66]
[1765520972315,10.61598612,139.47,139.44,0.66]
[1765520973406,7.85000264,139.47,139.44,0.66]
[1765520973724,3.44598348,139.46,139.42,7.17236808]
[1765520973910,7.84,139.45,139.42,7.83236808]
[1765520974221,8.52,139.45,139.42,7.83236808]
[1765520975802,8.52,139.45,139.42,7.79435808]
[1765520976927,7.84,139.45,139.43,0.66]
[1765520977113,7.84,139.45,139.43,0.94432314]
[1765520977325,7.84,139.45,139.43,8.11614892]
[1765520978828,8.52,139.45,139.42,7.17253467]
[1765520979027,8.52,139.45,139.42,7.83253467]
[1765520979208,7.84,139.45,139.42,7.83253467]
[1765520979408,7.84,139.45,139.43,0.66]
[1765520979615,7.84,139.45,139.42,7.17253467]
[1765520979819,7.84,139.45,139.42,7.83253467]
[1765520980013,15.69133163,139.45,139.42,0.66]
[1765520980214,2.76598348,139.43,139.39,20.88089501]
[1765520980420,7.84,139.42,139.4,4.68752133]
[1765520980616,7.84,139.42,139.4,0.66]
[1765520983730,18.49860089,139.42,139.39,20.88089501]
[1765520984139,11.32598348,139.42,139.39,20.88089501]
[1765520985021,7.84,139.42,139.4,0.66]
[1765520985609,7.84,139.42,139.4,9.75426806]
[1765520986131,7.84,139.42,139.4,0.66]
[1765520986333,10.60598348,139.42,139.4,0.66]
[1765520987145,18.49875665,139.42,139.39,20.22089501]
[1765520987434,18.49875665,139.42,139.39,20.88089501]
[1765520989636,0.72,139.41,139.39,7.17380381]
[1765520990230,17.77875665,139.42,139.39,7.83380381]
[1765520990431,18.49875665,139.42,139.39,7.83380381]
[1765520991835,0.72,139.41,139.39,7.83380381]
[1765520992535,17.77875665,139.42,139.39,7.83380381]
[1765520992536,18.49875665,139.42,139.39,7.83380381]
[1765520992913,3.48598348,139.41,139.39,0.66]
[1765520993641,3.48598348,139.41,139.38,16.84434785]
[1765520996243,15.01277317,139.42,139.39,0.66]
[1765520996540,17.77875665,139.42,139.39,0.66]
[1765520996731,0.72,139.41,139.39,0.66]
[1765521000765,10.65922252,139.41,139.38,0.2]
[1765521000951,2.76598348,139.39,139.38,0.2]
[1765521001154,2.76598348,139.42,139.38,0.86]
[1765521001335,7.86,139.41,139.38,1.00216157]
[1765521001533,7.86,139.41,139.39,7.83406526]
[1765521002337,5.04389874,139.4,139.38,0.2]
[1765521003851,12.21768846,139.4,139.38,0.2]
[1765521004048,0.72,139.39,139.38,0.2]
[1765521004242,20.07718959,139.41,139.38,0.86]
[1765521004447,7.86,139.41,139.38,8.31883936]
[1765521004643,7.86,139.41,139.39,0.66]
[1765521005040,8.58,139.41,139.39,0.66]
[1765521005433,8.58,139.41,139.38,8.17667779]
[1765521006451,7.86,139.41,139.39,0.66]
[1765521007057,8.58,139.41,139.39,0.66]
[1765521007560,12.90389874,139.41,139.38,8.17667779]
[1765521008557,8.58,139.41,139.38,8.17667779]
[1765521009972,8.58,139.41,139.39,0.66]
[1765521010666,7.86,139.41,139.39,0.66]
[1765521010842,7.86,139.41,139.4,8.95210649]
[1765521011373,7.86,139.41,139.4,9.61210649]
[1765521011571,0.72,139.46,139.41,0.14216157]
[1765521011745,7.86,139.45,139.42,0.66]
[1765521011944,7.86,139.45,139.42,4.98389874]
[1765521012568,7.86,139.45,139.43,7.83192399]
[1765521013065,7.86,139.45,139.43,7.17192399]
[1765521013292,7.86,139.45,139.43,7.86192399]
[1765521014462,7.86,139.45,139.44,0.69]
[1765521014766,7.86,139.45,139.44,7.86154331]
[1765521014972,8.55,139.45,139.41,0.97432314]
[1765521015269,0.69,139.44,139.41,8.14711489]
[1765521015467,0.69,139.44,139.41,7.45711489]
[1765521015676,0.69,139.44,139.42,0.69]
[1765521016446,0.69,139.44,139.41,7.45711489]
[1765521016668,0.69,139.44,139.42,4.71395882]
[1765521016873,0.69,139.44,139.41,8.14711489]
[1765521017068,0.69,139.44,139.42,4.71396062]
[1765521017277,0.69,139.44,139.41,8.14711489]
[1765521017474,0.69,139.44,139.42,4.71466615]
[1765521017782,0.69,139.44,139.41,8.14711489]
[1765521017956,0.69,139.44,139.42,4.71479347]
[1765521018157,0.69,139.44,139.41,8.14711489]
[1765521018360,0.69,139.44,139.42,4.71597788]
[1765521018565,0.69,139.44,139.41,8.14711489]
[1765521018767,0.69,139.44,139.42,4.71712737]
[1765521018987,0.69,139.44,139.41,8.14711489]
[1765521019188,7.8616364,139.44,139.42,4.7170623]
[1765521019361,7.8616364,139.44,139.41,7.86279175]
[1765521019682,0.69,139.43,139.4,16.67330551]
[1765521019889,0.69,139.43,139.41,4.71853582]
[1765521020072,0.69,139.43,139.4,16.67330551]
[1765521020260,0.69,139.43,139.41,4.71942305]
[1765521020589,12.18389874,139.42,139.38,9.69994492]
[1765521020819,11.49698531,139.41,139.39,4.72140217]
[1765521021091,12.18698531,139.41,139.38,0.2]
[1765521021266,12.18698531,139.41,139.39,4.72157567]
[1765521021464,7.86308657,139.41,139.38,0.89]
[1765521021767,12.18698531,139.41,139.39,4.7213569]
[1765521021970,12.18698531,139.41,139.38,0.89]
[1765521022182,12.18698531,139.41,139.39,4.72135546]
[1765521022391,12.18698531,139.41,139.38,0.89]
[1765521022590,12.18698531,139.41,139.39,4.72177918]
[1765521022880,12.18698531,139.41,139.38,8.06459407]
[1765521023088,11.49698531,139.41,139.39,4.72170942]
[1765521023256,0.69,139.4,139.38,0.2]
[1765521023452,0.69,139.4,139.39,4.72235892]
[1765521023657,8.55,139.4,139.39,4.72235892]
[1765521026309,20.04749988,139.4,139.38,0.2]
[1765521026614,4.97389874,139.39,139.38,0.2]
[1765521027711,0.65,139.38,139.34,0.72]
[1765521027884,7.86,139.37,139.35,4.7253578]
[1765521028090,12.18389874,139.37,139.34,0.72]
[1765521028290,12.83389874,139.37,139.35,4.72402048]
[1765521028508,20.00918659,139.37,139.34,0.72]
[1765521028702,15.68528785,139.37,139.35,4.72402048]
[1765521029020,15.68528785,139.37,139.34,7.89663366]
[1765521029210,18.02098994,139.42,139.36,9.09426806]
[1765521029512,7.86,139.41,139.37,5.44383275]
[1765521029718,12.18389874,139.41,139.37,0.72]
[1765521030012,19.357394,139.41,139.36,0.28432314]
[1765521030220,4.97389874,139.4,139.37,5.44106285]
[1765521030412,11.49820545,139.39,139.36,0.72]
[1765521030607,12.18389874,139.38,139.37,4.72164402]
[1765521030821,12.83389874,139.38,139.34,0.72]
[1765521031017,4.97389874,139.37,139.35,4.72426908]
[1765521031315,4.97389874,139.37,139.34,0.72]
[1765521031523,4.97389874,139.37,139.35,4.72323471]
[1765521031723,4.97389874,139.37,139.34,0.72]
[1765521032025,4.97389874,139.37,139.35,4.72323468]
[1765521032238,0.65,139.37,139.34,0.72]
[1765521032412,4.97389874,139.37,139.35,4.72231892]
[1765521032610,4.32389874,139.36,139.32,0.82]
[1765521032812,7.86,139.35,139.33,4.72270455]
[1765521033024,8.51,139.35,139.32,0.82]
[1765521033218,8.51,139.35,139.33,4.72416404]
[1765521033427,8.51,139.35,139.32,0.82]
[1765521033428,8.51,139.35,139.32,7.99763927]
[1765521033643,7.86,139.35,139.33,4.72247801]
[1765521033845,7.86,139.35,139.33,7.89705484]
[1765521034425,8.51,139.35,139.32,0.82]
[1765521034627,20.01030528,139.35,139.33,4.71983526]
[1765521034943,20.01030528,139.35,139.32,0.82]
[1765521034944,15.68640654,139.35,139.32,7.99762439]
[1765521035137,15.68640654,139.35,139.33,4.71983526]
[1765521035346,15.68640654,139.35,139.32,7.99762439]
[1765521035524,15.68640654,139.35,139.33,4.71848394]
[1765521035851,20.01030528,139.35,139.32,0.82]
[1765521036014,20.01030528,139.35,139.33,4.71848491]
[1765521036216,20.01030528,139.35,139.32,0.82]
[1765521036424,15.68640654,139.35,139.33,4.71727861]
[1765521036627,7.86,139.35,139.32,7.99757372]
[1765521036829,8.51,139.35,139.33,4.71727861]
[1765521037033,8.51,139.35,139.32,7.99757372]
[1765521037233,15.68619958,139.35,139.32,7.99757372]
[1765521037833,7.86,139.35,139.33,12.61307141]
[1765521038031,7.86,139.35,139.34,0.72]
[1765521038835,7.86,139.35,139.34,7.89669011]
[1765521040535,7.86,139.35,139.34,0.72]
[1765521040947,7.86,139.35,139.33,0.72]
[1765521041725,20.01016157,139.35,139.33,0.72]
[1765521042147,20.01016157,139.35,139.32,0.1]
[1765521042419,20.01016157,139.35,139.32,0.82]
[1765521042833,20.01016157,139.35,139.32,7.99770787]
[1765521043855,20.01452087,139.35,139.32,7.99770787]
[1765521044552,15.68626283,139.35,139.32,7.99770787]
[1765521044926,0.67,139.34,139.32,7.27770787]
[1765521045130,0.67,139.34,139.32,0.1]
[1765521045447,15.03636862,139.35,139.32,0.1]
[1765521045646,7.86,139.35,139.32,9.86426806]
[1765521046037,7.86,139.35,139.33,0.67]
[1765521048451,8.53,139.35,139.32,17.04156641]
[1765521049030,15.7062066,139.35,139.32,0.77]
[1765521049758,15.7062066,139.35,139.32,7.94753351]
[1765521051437,4.99825804,139.34,139.32,0.1]
[1765521051638,4.32825804,139.33,139.32,0.1]
[1765521051842,0.67,139.33,139.32,0.1]
[1765521052752,19.36446464,139.35,139.32,0.1]
[1765521052944,15.7062066,139.35,139.32,0.77]
[1765521053255,8.53,139.35,139.32,9.57994492]
[1765521053453,7.86,139.35,139.33,7.17720519]
[1765521053758,7.86,139.35,139.33,7.84720519]
[1765521054363,8.53,139.35,139.33,0.67]
[1765521054548,0.67,139.34,139.32,16.0874075]
[1765521054753,15.70623174,139.35,139.32,16.7574075]
[1765521054939,0.67,139.34,139.32,0.1]
[1765521055735,7.17676268,139.34,139.32,0.1]
[1765521055937,7.17676268,139.34,139.32,0.77]
[1765521056843,20.03461141,139.35,139.32,0.77]
[1765521057042,15.03635337,139.35,139.32,0.77]
[1765521057269,7.86,139.35,139.32,9.57994492]
[1765521057450,7.86,139.35,139.33,0.67]
[1765521057642,8.53,139.35,139.32,16.75729757]
[1765521058262,7.86,139.34,139.32,16.75729757]
[1765521059639,7.86,139.34,139.32,7.94735265]
[1765521060042,7.86,139.34,139.32,0.77]
[1765521061067,7.86,139.34,139.32,7.94764921]
[1765521061449,7.86,139.34,139.33,7.84720519]
[1765521062549,7.86,139.34,139.33,0.67]
[1765521065168,7.86,139.34,139.33,5.38976849]
[1765521066042,7.86,139.34,139.33,12.56697368]
[1765521067555,7.86,139.34,139.33,4.71976849]
[1765521068347,7.86,139.34,139.33,5.38976849]
[1765521069452,7.86,139.34,139.33,4.71976849]
[1765521070085,7.86,139.34,139.33,5.38976849]
[1765521070782,7.86,139.34,139.33,4.71976849]
[1765521071085,7.86,139.34,139.33,5.38976849]
[1765521071682,7.86,139.34,139.33,4.71976849]
[1765521071863,8.53,139.34,139.33,4.71976849]
[1765521072474,7.86,139.34,139.33,4.71976849]
[1765521074381,15.03669011,139.34,139.33,4.71976849]
[1765521074589,15.73669011,139.34,139.33,4.71976849]
[1765521077273,15.73669011,139.34,139.32,0.1]
[1765521077601,0.7,139.33,139.32,0.1]
[1765521077795,0.7,139.33,139.32,4.83640893]
[1765521078096,15.73669011,139.34,139.32,4.83640893]
[1765521078393,15.73669011,139.34,139.33,4.73640893]
[1765521079472,15.73669011,139.34,139.32,0.1]
[1765521079694,0.7,139.33,139.32,0.1]
[1765521079998,0.7,139.33,139.32,4.83738564]
[1765521081401,7.87720519,139.33,139.32,4.83738564]
[1765521082604,7.87720519,139.33,139.32,0.1]
[1765521083795,10.64683152,139.33,139.32,0.1]
[1765521085202,15.03617509,139.35,139.32,14.33396396]
[1765521085404,18.48580142,139.35,139.32,0.1]
[1765521085607,3.44962633,139.34,139.32,0.1]
[1765521086108,7.85720519,139.33,139.32,0.1]
[1765521087502,15.71720519,139.33,139.32,0.1]
[1765521087706,18.48776643,139.33,139.32,0.1]
[1765521089988,15.71720519,139.33,139.32,0.1]
[1765521090190,18.48776643,139.33,139.32,0.1]
[1765521094205,17.94043774,139.35,139.32,0.1]
[1765521094404,15.71690985,139.34,139.32,0.1]
[1765521094605,18.48747109,139.34,139.32,0.1]
[1765521094804,0.68,139.33,139.32,0.1]
[1765521095410,7.85720519,139.33,139.32,0.1]
[1765521095791,10.62776643,139.33,139.32,0.1]
[1765521098110,23.67485763,139.33,139.32,0.1]
[1765521099202,13.0470912,139.31,139.3,0.1]
[1765521099406,26.44821368,139.31,139.3,0.1]
[1765521099627,31.53588802,139.31,139.3,0.1]
[1765521100331,20.90532678,139.31,139.3,0.1]
[1765521100629,0.68,139.31,139.3,0.1]
[1765521100830,7.86,139.31,139.3,0.1]
[1765521101039,10.63056124,139.31,139.3,0.1]
[1765521101328,11.31056124,139.31,139.3,0.1]
[1765521101508,18.48879682,139.31,139.3,0.1]
[1765521101911,17.80879682,139.31,139.3,0.1]
[1765521102332,15.03823558,139.31,139.3,0.1]
[1765521102511,17.80879682,139.31,139.3,0.1]
[1765521102836,18.48879682,139.31,139.3,0.1]
[1765521103530,10.63056124,139.31,139.3,0.1]
[1765521103735,7.86,139.31,139.3,0.77]
[1765521104426,7.86,139.31,139.3,0.1]
[1765521105229,15.03823558,139.31,139.3,0.1]
[1765521105428,17.80879682,139.31,139.3,0.1]
[1765521106132,15.03823558,139.31,139.3,0.1]
[1765521106335,7.86,139.31,139.3,0.1]
[1765521107247,15.03823558,139.31,139.3,0.1]
[1765521108054,18.49879682,139.31,139.3,0.1]
[1765521113151,15.72823558,139.31,139.3,0.1]
[1765521113342,18.49879682,139.31,139.3,0.1]
[1765521113932,13.0470912,139.33,139.3,0.77]
[1765521114132,7.86,139.32,139.3,0.77]
[1765521114532,10.63056124,139.32,139.3,0.77]
[1765521115429,17.80830526,139.32,139.3,0.77]
[1765521115746,18.49830526,139.32,139.3,0.77]
[1765521115953,18.49830526,139.32,139.3,0.1]
[1765521116134,2.77056124,139.31,139.3,0.1]
[1765521116556,15.03774402,139.32,139.3,0.1]
[1765521116853,9.94879682,139.31,139.3,0.1]
[1765521117930,10.63879682,139.31,139.3,0.1]
[1765521121057,13.51308273,139.31,139.3,0.1]
[1765521122043,29.61505831,139.31,139.3,1e-08]
[1765521122448,26.56017393,139.31,139.3,1e-08]
[1765521122637,29.33073517,139.31,139.3,1e-08]
[1765521122838,23.68588802,139.31,139.3,1e-08]
[1765521123948,25.24752362,139.31,139.3,1e-08]
[1765521127060,12.20043242,139.31,139.3,1e-08]
[1765521127941,12.20074527,139.31,139.3,1e-08]
[1765521130862,16.53325496,139.31,139.3,1e-08]
[1765521131270,19.40733435,139.31,139.3,1e-08]
[1765521131451,14.38482466,139.31,139.3,1e-08]
[1765521131644,19.37074527,139.31,139.3,0.72000001]
[1765521133574,19.37074527,139.31,139.3,1e-08]
[1765521134165,11.51074527,139.31,139.3,0.72000001]
[1765521134365,19.37074527,139.31,139.3,0.72000001]
[1765521134870,19.37074527,139.31,139.3,1e-08]
[1765521135547,15.03823558,139.31,139.3,1e-08]
[1765521135746,19.37074527,139.31,139.3,1e-08]
[1765521136152,19.37074527,139.31,139.3,0.72000001]
[1765521137160,19.37074527,139.31,139.3,1e-08]
[1765521139469,19.37074527,139.31,139.3,0.72000001]
[1765521140863,7.86,139.31,139.3,0.72000001]
[1765521142572,15.03823558,139.31,139.3,0.72000001]
[1765521142780,19.37074527,139.31,139.3,0.72000001]
[1765521143071,19.37074527,139.31,139.3,1e-08]
[1765521147365,20.05074527,139.31,139.3,1e-08]
[1765521148192,19.37074527,139.31,139.3,1e-08]
[1765521149493,20.05074527,139.31,139.3,1e-08]
[1765521150356,19.37074527,139.31,139.3,1e-08]
[1765521150760,20.05074527,139.31,139.3,1e-08]
[1765521153806,7.17792567,139.32,139.3,0.71000001]
[1765521154010,7.86,139.31,139.3,0.71000001]
[1765521155484,19.37074527,139.31,139.3,1e-08]
[1765521155885,20.05074527,139.31,139.3,1e-08]
[1765521158905,2.87366643,139.33,139.3,0.71000001]
[1765521159083,7.86,139.32,139.3,0.71000001]
[1765521159405,7.86,139.31,139.3,0.71000001]
[1765521159601,7.86,139.31,139.3,5.4475036]
[1765521160019,7.86,139.31,139.3,7.8887509]
[1765521160905,7.86,139.31,139.3,12.62577307]
[1765521165421,7.17625118,139.35,139.3,21.43571799]
[1765521165620,7.86,139.34,139.31,5.44702217]
[1765521165925,7.86,139.34,139.31,0.71]
[1765521166098,7.86,139.34,139.32,0.71]
[1765521167937,7.86,139.34,139.32,7.88767408]
[1765521168425,7.86,139.34,139.33,0.71]
[1765521169004,15.03674193,139.34,139.32,0.71]
[1765521170628,7.86,139.34,139.32,0.71]
[1765521174235,15.03669989,139.34,139.32,0.71]
[1765521178228,15.75669989,139.34,139.32,0.71]
[1765521178430,15.03669989,139.34,139.32,0.71]
[1765521179347,15.75669989,139.34,139.32,0.71]
[1765521179754,15.03669989,139.34,139.32,0.71]
[1765521196871,15.69669989,139.34,139.32,0.71]
[1765521197465,15.03669989,139.34,139.32,0.71]
[1765521199194,15.03669989,139.34,139.33,4.78722721]
[1765521202091,7.17669989,139.34,139.33,4.78722721]
[1765521202291,15.69669989,139.34,139.33,4.78722721]
[1765521202869,15.69669989,139.34,139.31,0.68]
[1765521203086,15.69669989,139.34,139.32,4.79093129]
[1765521203278,15.69669989,139.34,139.33,4.79093129]
[1765521203597,15.03669989,139.34,139.33,4.79093129]
[1765521204667,15.69669989,139.34,139.33,4.79093129]
[1765521207415,18.46651037,139.34,139.33,4.79093129]
[1765521208414,36.40823564,139.34,139.3,1e-08]
[1765521208632,2.76981048,139.32,139.31,4.79665911]
[1765521208822,10.62981048,139.32,139.31,4.79665911]
[1765521208990,11.28981048,139.32,139.31,4.79665911]
[1765521209190,11.28981048,139.32,139.3,1e-08]
[1765521209401,7.17823558,139.31,139.3,1e-08]
[1765521209613,7.17823558,139.31,139.3,4.79463829]
[1765521210185,7.17823558,139.31,139.3,5.48463829]
[1765521210497,15.03790363,139.32,139.3,5.48463829]
[1765521210694,15.03790363,139.32,139.31,4.79463828]
[1765521210899,7.17790363,139.32,139.31,5.48463828]
[1765521211096,15.03790363,139.32,139.31,5.48463828]
[1765521211809,7.86,139.32,139.31,5.48463828]
[1765521224544,7.86,139.32,139.31,4.79463828]
[1765521225218,15.03772035,139.32,139.31,4.79463828]
[1765521225722,15.03772035,139.32,139.31,5.47463828]
[1765521226746,15.03772035,139.32,139.31,4.79463828]
[1765521227246,15.70772035,139.32,139.31,4.79463828]
[1765521227540,15.70772035,139.32,139.3,1e-08]
[1765521227745,3.44129125,139.31,139.3,1e-08]
[1765521228043,3.44129125,139.31,139.3,4.78478946]
[1765521229045,0.67,139.31,139.3,4.78478946]
[1765521229548,7.84823558,139.31,139.3,4.78478946]
[1765521231450,10.61952683,139.31,139.3,4.78478946]
[1765521231748,10.61952683,139.31,139.3,1e-08]
[1765521231933,16.08431629,139.31,139.3,1e-08]
[1765521235850,13.31302504,139.31,139.3,1e-08]
[1765521236044,16.08431629,139.31,139.3,1e-08]
[1765521241235,29.13140749,139.31,139.3,1e-08]
[1765521241544,29.13140749,139.31,139.29,0.63703353]
[1765521241545,31.90269874,139.31,139.29,0.63703353]
[1765521241736,11.30129125,139.3,139.29,0.63703353]
[1765521241945,14.0725825,139.3,139.29,0.63703353]
[1765521242239,14.0725825,139.3,139.26,0.1]
[1765521242452,9.95158851,139.27,139.26,0.1]
[1765521242752,17.81158851,139.27,139.26,0.1]
[1765521243065,18.48158851,139.27,139.26,0.1]
[1765521243750,25.66426099,139.27,139.26,0.1]
[1765521244457,7.18267248,139.27,139.26,0.78]
[1765521244658,18.48158851,139.27,139.26,0.1]
[1765521245341,25.76426099,139.27,139.26,0.1]
[1765521246636,38.81135219,139.27,139.26,0.1]
[1765521247239,92.94790481,139.27,139.21,0.1]
[1765521247440,13.0470912,139.24,139.21,0.1]
[1765521247644,2.77129125,139.22,139.21,0.1]
[1765521247848,11.51925973,139.22,139.21,0.1]
[1765521248873,14.46746422,139.22,139.21,0.1]
[1765521249173,18.80384793,139.22,139.21,0.1]